[Event "*** Titled Tuesday Blitz"]
[Site "Chess.com"]
[Date "2019.01.01"]
[Round "4"]
[White "Sordis"]
[Black "c63_amg"]
[Result "0-1"]
[WhiteElo "2406"]
[BlackElo "2681"]
[TimeControl "180+2"]
[EndTime "13:56:22 PST"]
[Termination "c63_amg won by resignation"]

1. c4 {[%clk 0:03:01.9]} 1... Nf6 {[%clk 0:03:00]} 2. g3 {[%clk 0:03:02.4]} 2...
e6 {[%clk 0:02:58.3]} 3. Bg2 {[%clk 0:03:03.2]} 3... d5 {[%clk 0:02:58.3]} 4.
Nf3 {[%clk 0:03:04.7]} 4... Be7 {[%clk 0:02:59.1]} 5. O-O {[%clk 0:03:05.3]}
5... O-O {[%clk 0:02:59.7]} 6. b3 {[%clk 0:03:06.3]} 6... c5 {[%clk 0:03:00.3]}
7. cxd5 {[%clk 0:03:07.7]} 7... Nxd5 {[%clk 0:02:56]} 8. d4 {[%clk 0:03:09]}
8... Nc6 {[%clk 0:02:54.1]} 9. Bb2 {[%clk 0:03:09.4]} 9... Bf6 {[%clk
0:02:28.8]} 10. e4 {[%clk 0:02:42.5]} 10... Ndb4 {[%clk 0:02:28.6]} 11. a3
{[%clk 0:02:28]} 11... Na6 {[%clk 0:02:28.2]} 12. e5 {[%clk 0:02:24.5]} 12...
Be7 {[%clk 0:02:28.2]} 13. Nbd2 {[%clk 0:02:24.7]} 13... Bd7 {[%clk 0:01:55.5]}
14. Nc4 {[%clk 0:02:06.8]} 14... Rc8 {[%clk 0:01:39.4]} 15. Nd6 {[%clk
0:01:50.1]} 15... Bxd6 {[%clk 0:01:35.8]} 16. exd6 {[%clk 0:01:52]} 16... Qf6
{[%clk 0:01:06.9]} 17. Ne5 {[%clk 0:01:43.8]} 17... Rfd8 {[%clk 0:01:06.7]} 18.
Nxd7 {[%clk 0:01:05.3]} 18... Rxd7 {[%clk 0:01:07.3]} 19. Rc1 {[%clk 0:01:03]}
19... Rxd6 {[%clk 0:00:59.1]} 20. Qe2 {[%clk 0:00:49.9]} 20... cxd4 {[%clk
0:00:56.5]} 21. Rfd1 {[%clk 0:00:42.8]} 21... e5 {[%clk 0:00:51.2]} 22. b4
{[%clk 0:00:27.2]} 22... Nab8 {[%clk 0:00:32.8]} 23. b5 {[%clk 0:00:23.5]} 23...
Ne7 {[%clk 0:00:33.6]} 24. Rxc8+ {[%clk 0:00:21.1]} 24... Nxc8 {[%clk
0:00:33.4]} 25. Bxb7 {[%clk 0:00:22.5]} 25... Nb6 {[%clk 0:00:31.7]} 26. a4
{[%clk 0:00:23.1]} 26... Nxa4 {[%clk 0:00:25.8]} 27. Ba3 {[%clk 0:00:22.3]}
27... Nc3 {[%clk 0:00:25.8]} 28. Qc4 {[%clk 0:00:17.5]} 28... Nxd1 {[%clk
0:00:20.3]} 29. Bxd6 {[%clk 0:00:16.3]} 29... Qxd6 {[%clk 0:00:21]} 30. Qc8+
{[%clk 0:00:14.5]} 30... Qf8 {[%clk 0:00:22.4]} 31. Qg4 {[%clk 0:00:15.7]} 31...
Nc3 {[%clk 0:00:22.1]} 32. Qf3 {[%clk 0:00:15.8]} 32... Nxb5 {[%clk 0:00:22.6]}
33. Qd5 {[%clk 0:00:16.9]} 33... Nd6 {[%clk 0:00:23.2]} 34. Qxe5 {[%clk
0:00:18.1]} 34... Nxb7 {[%clk 0:00:24.2]} 35. Qxd4 {[%clk 0:00:20]} 35... h6
{[%clk 0:00:24.2]} 36. Qxa7 {[%clk 0:00:21.1]} 36... Nd6 {[%clk 0:00:25.3]} 37.
Qc7 {[%clk 0:00:22.2]} 37... Na6 {[%clk 0:00:24.5]} 38. Qb6 {[%clk 0:00:22.4]}
38... Nb8 {[%clk 0:00:23.3]} 39. h3 {[%clk 0:00:22.3]} 39... Nd7 {[%clk
0:00:23.3]} 40. Qd4 {[%clk 0:00:22.9]} 40... Qe7 {[%clk 0:00:23.3]} 41. h4
{[%clk 0:00:22.8]} 41... Ne5 {[%clk 0:00:23.8]} 42. Qf4 {[%clk 0:00:22.8]} 42...
g5 {[%clk 0:00:20.6]} 43. hxg5 {[%clk 0:00:23.5]} 43... hxg5 {[%clk 0:00:22]}
44. Qa4 {[%clk 0:00:20.6]} 44... Nf3+ {[%clk 0:00:20.3]} 45. Kg2 {[%clk
0:00:22.1]} 45... Qe4 {[%clk 0:00:21.2]} 46. Qxe4 {[%clk 0:00:21.9]} 46... Nxe4
{[%clk 0:00:22]} 47. Kxf3 {[%clk 0:00:23.8]} 47... Nf6 {[%clk 0:00:22.2]} 48.
Ke3 {[%clk 0:00:23.8]} 48... Kg7 {[%clk 0:00:23.1]} 49. Kf3 {[%clk 0:00:25.1]}
49... Kg6 {[%clk 0:00:24.5]} 50. Ke3 {[%clk 0:00:26.7]} 50... Kf5 {[%clk
0:00:25.6]} 51. Kf3 {[%clk 0:00:28.1]} 51... g4+ {[%clk 0:00:26.7]} 52. Ke3
{[%clk 0:00:29.5]} 52... Ne4 {[%clk 0:00:27.2]} 53. Ke2 {[%clk 0:00:28.7]} 53...
Ng5 {[%clk 0:00:24.9]} 54. Ke3 {[%clk 0:00:29.2]} 54... Ke5 {[%clk 0:00:26.3]}
55. Kd3 {[%clk 0:00:29.3]} 55... f5 {[%clk 0:00:26.5]} 56. Ke3 {[%clk
0:00:30.7]} 56... Ne4 {[%clk 0:00:24.8]} 57. Ke2 {[%clk 0:00:29.7]} 57... Nxg3+
{[%clk 0:00:21.5]} 58. fxg3 {[%clk 0:00:30.6]} 58... Ke4 {[%clk 0:00:22.5]} 59.
Kf2 {[%clk 0:00:29.1]} 59... Kd3 {[%clk 0:00:23.5]} 60. Ke1 {[%clk 0:00:25.3]}
60... Ke3 {[%clk 0:00:23.9]} 61. Kf1 {[%clk 0:00:27.1]} 61... Kf3 {[%clk
0:00:25.1]} 62. Kg1 {[%clk 0:00:28.5]} 62... Kxg3 {[%clk 0:00:26.2]} 63. Kh1
{[%clk 0:00:30.4]} 63... f4 {[%clk 0:00:27.1]} 64. Kg1 {[%clk 0:00:32.3]} 64...
f3 {[%clk 0:00:27.6]} 65. Kh1 {[%clk 0:00:34.2]} 65... Kf2 {[%clk 0:00:28.7]}
66. Kh2 {[%clk 0:00:35.5]} 66... g3+ {[%clk 0:00:30.1]} 67. Kh3 {[%clk
0:00:35.3]} 67... g2 {[%clk 0:00:31.2]} 0-1

[Event "*** Titled Tuesday Blitz"]
[Site "Chess.com"]
[Date "2019.01.01"]
[Round "4"]
[White "Zq1"]
[Black "Doraemon7"]
[Result "1-0"]
[WhiteElo "2464"]
[BlackElo "2503"]
[TimeControl "180+2"]
[EndTime "13:56:27 PST"]
[Termination "Zq1 won by resignation"]

1. d4 {[%clk 0:03:01.9]} 1... d5 {[%clk 0:02:58.4]} 2. c4 {[%clk 0:03:02.6]}
2... c6 {[%clk 0:02:59.1]} 3. cxd5 {[%clk 0:03:03.1]} 3... cxd5 {[%clk 0:03:01]}
4. Bg5 {[%clk 0:03:03.5]} 4... Nc6 {[%clk 0:02:58.1]} 5. Nc3 {[%clk 0:03:04.2]}
5... Nf6 {[%clk 0:02:59.1]} 6. Bxf6 {[%clk 0:03:04.9]} 6... gxf6 {[%clk
0:03:01]} 7. g3 {[%clk 0:03:01.9]} 7... e6 {[%clk 0:02:59.7]} 8. e3 {[%clk
0:03:00]} 8... Qb6 {[%clk 0:02:55.2]} 9. Rb1 {[%clk 0:02:59.9]} 9... Bd7 {[%clk
0:02:55.8]} 10. Nge2 {[%clk 0:02:58.6]} 10... Rc8 {[%clk 0:02:53.6]} 11. a3
{[%clk 0:02:56.6]} 11... Na5 {[%clk 0:02:54.2]} 12. Nf4 {[%clk 0:02:52.4]} 12...
Nc4 {[%clk 0:02:38.8]} 13. Bxc4 {[%clk 0:02:34.4]} 13... Rxc4 {[%clk 0:02:40.7]}
14. O-O {[%clk 0:02:35.2]} 14... Bd6 {[%clk 0:02:11.9]} 15. Qf3 {[%clk
0:02:24.4]} 15... f5 {[%clk 0:02:04.7]} 16. Rfc1 {[%clk 0:02:20.5]} 16... O-O
{[%clk 0:01:57]} 17. Rc2 {[%clk 0:02:07]} 17... Rfc8 {[%clk 0:01:56.3]} 18. Rbc1
{[%clk 0:02:01.3]} 18... Qd8 {[%clk 0:01:49.6]} 19. Nd3 {[%clk 0:01:29.4]} 19...
b5 {[%clk 0:01:38.6]} 20. b3 {[%clk 0:01:24.3]} 20... R4c7 {[%clk 0:01:32.2]}
21. b4 {[%clk 0:01:22.1]} 21... a5 {[%clk 0:01:26.9]} 22. Nc5 {[%clk 0:01:22]}
22... Bc6 {[%clk 0:01:11.5]} 23. Ne2 {[%clk 0:01:14.6]} 23... Bd7 {[%clk
0:00:54.2]} 24. Nf4 {[%clk 0:01:07.5]} 24... Ra8 {[%clk 0:00:48.5]} 25. Nfd3
{[%clk 0:01:02.1]} 25... Be8 {[%clk 0:00:42.9]} 26. Ne5 {[%clk 0:00:55]} 26...
axb4 {[%clk 0:00:37.2]} 27. axb4 {[%clk 0:00:55.2]} 27... Ra3 {[%clk 0:00:37.7]}
28. Qe2 {[%clk 0:00:40.4]} 28... Qe7 {[%clk 0:00:26.9]} 29. Ra2 {[%clk
0:00:34.3]} 29... Rca7 {[%clk 0:00:23.8]} 30. Rca1 {[%clk 0:00:34.7]} 30... Rxa2
{[%clk 0:00:19.8]} 31. Rxa2 {[%clk 0:00:36.3]} 31... f6 {[%clk 0:00:19.1]} 32.
Ned3 {[%clk 0:00:34.1]} 32... Bf7 {[%clk 0:00:15.5]} 33. Qb2 {[%clk 0:00:25.6]}
33... e5 {[%clk 0:00:15.8]} 34. Rxa7 {[%clk 0:00:21.2]} 34... Qxa7 {[%clk
0:00:17.7]} 35. dxe5 {[%clk 0:00:22.1]} 35... fxe5 {[%clk 0:00:19.4]} 36. Nxe5
{[%clk 0:00:23.3]} 36... Bxc5 {[%clk 0:00:20.2]} 37. bxc5 {[%clk 0:00:22.7]}
37... Qxc5 {[%clk 0:00:22.1]} 38. Nd7 {[%clk 0:00:21.1]} 38... Qc4 {[%clk
0:00:20.8]} 39. Nf6+ {[%clk 0:00:21.5]} 39... Kf8 {[%clk 0:00:20.2]} 40. Nxh7+
{[%clk 0:00:21.9]} 40... Ke8 {[%clk 0:00:19]} 41. Qe5+ {[%clk 0:00:22.6]} 41...
Kd8 {[%clk 0:00:17.6]} 42. Qf6+ {[%clk 0:00:22.1]} 42... Ke8 {[%clk 0:00:18.8]}
43. Ng5 {[%clk 0:00:22.6]} 43... d4 {[%clk 0:00:13.3]} 44. Qe5+ {[%clk
0:00:20.4]} 44... Kd7 {[%clk 0:00:13.2]} 45. Qxd4+ {[%clk 0:00:18.8]} 45... Qxd4
{[%clk 0:00:13.7]} 46. exd4 {[%clk 0:00:20.4]} 46... b4 {[%clk 0:00:15.6]} 47.
Nf3 {[%clk 0:00:20.8]} 47... b3 {[%clk 0:00:16.5]} 48. Nd2 {[%clk 0:00:22]}
48... b2 {[%clk 0:00:17.9]} 49. f3 {[%clk 0:00:23]} 49... Ba2 {[%clk 0:00:19.1]}
50. Kf2 {[%clk 0:00:24.2]} 50... b1=Q {[%clk 0:00:20.5]} 51. Nxb1 {[%clk
0:00:25.2]} 51... Bxb1 {[%clk 0:00:22.4]} 52. Ke3 {[%clk 0:00:26.4]} 52... Ke6
{[%clk 0:00:23.1]} 53. Kf4 {[%clk 0:00:27.3]} 53... Bd3 {[%clk 0:00:24.1]} 54.
Kg5 {[%clk 0:00:27.1]} 54... Be2 {[%clk 0:00:23.9]} 55. f4 {[%clk 0:00:24.6]}
55... Kd5 {[%clk 0:00:22.8]} 56. Kxf5 {[%clk 0:00:23.9]} 56... Kxd4 {[%clk
0:00:24.3]} 57. g4 {[%clk 0:00:23.6]} 57... Kd5 {[%clk 0:00:24.9]} 58. g5 {[%clk
0:00:22.2]} 58... Kd6 {[%clk 0:00:24.1]} 59. Kf6 {[%clk 0:00:23.3]} 59... Kd7
{[%clk 0:00:24.6]} 60. g6 {[%clk 0:00:21.9]} 60... Ke8 {[%clk 0:00:25.7]} 61.
Kg7 {[%clk 0:00:22.9]} 61... Bd3 {[%clk 0:00:24.6]} 62. h4 {[%clk 0:00:22.5]}
62... Be2 {[%clk 0:00:23.9]} 63. f5 {[%clk 0:00:22.7]} 63... Bh5 {[%clk
0:00:25.2]} 64. f6 {[%clk 0:00:23.3]} 1-0

[Event "*** Titled Tuesday Blitz"]
[Site "Chess.com"]
[Date "2019.01.01"]
[Round "4"]
[White "Indianlad"]
[Black "Dr-Bassem"]
[Result "1-0"]
[WhiteElo "2835"]
[BlackElo "2714"]
[TimeControl "180+2"]
[EndTime "13:56:28 PST"]
[Termination "Indianlad won on time"]

1. e4 {[%clk 0:03:01.9]} 1... e5 {[%clk 0:02:59.6]} 2. Nf3 {[%clk 0:03:03.3]}
2... Nc6 {[%clk 0:02:58.4]} 3. Nc3 {[%clk 0:03:01.3]} 3... Nf6 {[%clk
0:02:57.9]} 4. Bb5 {[%clk 0:03:02.6]} 4... Bb4 {[%clk 0:02:58.4]} 5. O-O {[%clk
0:03:02.8]} 5... O-O {[%clk 0:02:59.1]} 6. Nd5 {[%clk 0:03:04]} 6... Nxd5 {[%clk
0:02:50.6]} 7. exd5 {[%clk 0:03:04.3]} 7... e4 {[%clk 0:02:33.1]} 8. dxc6 {[%clk
0:02:55.7]} 8... dxc6 {[%clk 0:02:21.2]} 9. Be2 {[%clk 0:02:52.5]} 9... exf3
{[%clk 0:02:21]} 10. Bxf3 {[%clk 0:02:54.4]} 10... Re8 {[%clk 0:02:15.8]} 11. c3
{[%clk 0:02:53.1]} 11... Bd6 {[%clk 0:02:11.9]} 12. d4 {[%clk 0:02:54.3]} 12...
Bf5 {[%clk 0:02:10.8]} 13. Re1 {[%clk 0:02:52.4]} 13... Bc2 {[%clk 0:01:55]} 14.
Qd2 {[%clk 0:02:51.7]} 14... Bf4 {[%clk 0:01:47.6]} 15. Rxe8+ {[%clk 0:02:52.8]}
15... Qxe8 {[%clk 0:01:48.1]} 16. Qe2 {[%clk 0:02:54.1]} 16... Qxe2 {[%clk
0:01:37.9]} 17. Bxe2 {[%clk 0:02:54.6]} 17... Re8 {[%clk 0:01:34.4]} 18. Bxf4
{[%clk 0:02:42.6]} 18... Rxe2 {[%clk 0:01:34.3]} 19. Bxc7 {[%clk 0:02:43.9]}
19... Bd3 {[%clk 0:01:27.2]} 20. b3 {[%clk 0:02:44.5]} 20... f6 {[%clk
0:01:23.9]} 21. h3 {[%clk 0:02:43.2]} 21... g5 {[%clk 0:01:15.1]} 22. c4 {[%clk
0:02:43.2]} 22... Be4 {[%clk 0:01:07.3]} 23. f3 {[%clk 0:02:40.1]} 23... Bf5
{[%clk 0:01:01.8]} 24. d5 {[%clk 0:02:41.2]} 24... Kf7 {[%clk 0:00:53.9]} 25. d6
{[%clk 0:02:35.7]} 25... h5 {[%clk 0:00:45.7]} 26. c5 {[%clk 0:02:24.9]} 26...
Be6 {[%clk 0:00:38.6]} 27. b4 {[%clk 0:02:13.3]} 27... Ke8 {[%clk 0:00:26.2]}
28. a3 {[%clk 0:02:02.5]} 28... Kd7 {[%clk 0:00:26.2]} 29. Rd1 {[%clk
0:01:57.7]} 29... Re3 {[%clk 0:00:23.5]} 30. h4 {[%clk 0:01:54.7]} 30... Rxa3
{[%clk 0:00:18.1]} 31. hxg5 {[%clk 0:01:55.8]} 31... fxg5 {[%clk 0:00:20]} 32.
Re1 {[%clk 0:01:57.2]} 32... Rd3 {[%clk 0:00:18.7]} 33. Kf2 {[%clk 0:01:50.3]}
33... Rd4 {[%clk 0:00:19]} 34. Re5 {[%clk 0:01:50.6]} 34... Rd5 {[%clk
0:00:18.1]} 35. Rxd5 {[%clk 0:01:45.5]} 35... Bxd5 {[%clk 0:00:10.3]} 36. Bb8
{[%clk 0:01:43.8]} 36... a6 {[%clk 0:00:08.1]} 37. Ba7 {[%clk 0:01:40.8]} 37...
Be6 {[%clk 0:00:08.4]} 38. Bb6 {[%clk 0:01:41.3]} 38... Bf5 {[%clk 0:00:09.3]}
39. Ba5 {[%clk 0:01:42.2]} 39... Kc8 {[%clk 0:00:10.2]} 40. Ke3 {[%clk
0:01:42.5]} 40... Kd7 {[%clk 0:00:09.1]} 41. g3 {[%clk 0:01:43]} 41... h4 {[%clk
0:00:09.1]} 42. g4 {[%clk 0:01:41.6]} 42... Be6 {[%clk 0:00:08.7]} 43. Kf2
{[%clk 0:01:40]} 43... Bd5 {[%clk 0:00:09.4]} 44. b5 {[%clk 0:01:39.7]} 44...
cxb5 {[%clk 0:00:08.8]} 45. Bd2 {[%clk 0:01:40.4]} 45... h3 {[%clk 0:00:08.7]}
46. Kg3 {[%clk 0:01:30.7]} 46... b4 {[%clk 0:00:05.8]} 47. Bxb4 {[%clk
0:01:29.5]} 47... h2 {[%clk 0:00:05.5]} 48. Kxh2 {[%clk 0:01:30.9]} 48... Bxf3
{[%clk 0:00:07]} 49. Kg3 {[%clk 0:01:30.5]} 49... Bc6 {[%clk 0:00:07.4]} 50. Bd2
{[%clk 0:01:30.7]} 50... Ke6 {[%clk 0:00:07.7]} 51. Bxg5 {[%clk 0:01:30.7]}
51... a5 {[%clk 0:00:09]} 52. Bd2 {[%clk 0:01:31.9]} 52... a4 {[%clk 0:00:07]}
53. Bb4 {[%clk 0:01:33.1]} 53... Ke5 {[%clk 0:00:07.5]} 54. Kh4 {[%clk
0:01:31.3]} 54... Kd5 {[%clk 0:00:04.6]} 55. g5 {[%clk 0:01:31.2]} 55... Kc4
{[%clk 0:00:06.3]} 56. Ba3 {[%clk 0:01:28.1]} 56... Kb3 {[%clk 0:00:07.4]} 57.
g6 {[%clk 0:01:28]} 57... Kxa3 {[%clk 0:00:05.2]} 58. g7 {[%clk 0:01:29.1]}
58... Kb4 {[%clk 0:00:06.1]} 59. g8=Q {[%clk 0:01:30]} 59... Kxc5 {[%clk
0:00:07.1]} 60. Kg5 {[%clk 0:01:27.6]} 60... Kxd6 {[%clk 0:00:07.7]} 61. Kf4
{[%clk 0:01:28.8]} 61... Kc5 {[%clk 0:00:08.7]} 62. Ke3 {[%clk 0:01:29.7]} 62...
Kb4 {[%clk 0:00:09.9]} 63. Kd2 {[%clk 0:01:29.6]} 63... b5 {[%clk 0:00:09.3]}
64. Qe6 {[%clk 0:01:24.7]} 64... Kc5 {[%clk 0:00:07.2]} 65. Qe5+ {[%clk
0:01:24.7]} 65... Kc4 {[%clk 0:00:07.2]} 66. Qc3+ {[%clk 0:01:24.4]} 66... Kd5
{[%clk 0:00:08.4]} 67. Qb4 {[%clk 0:01:25.7]} 1-0

[Event "*** Titled Tuesday Blitz"]
[Site "Chess.com"]
[Date "2019.01.01"]
[Round "4"]
[White "gonzaga23"]
[Black "Kostya_Nikologorskiy"]
[Result "0-1"]
[WhiteElo "2424"]
[BlackElo "2369"]
[TimeControl "180+2"]
[EndTime "13:56:39 PST"]
[Termination "Kostya_Nikologorskiy won by resignation"]

1. e4 {[%clk 0:03:01.9]} 1... e6 {[%clk 0:02:59.5]} 2. Nf3 {[%clk 0:03:02.7]}
2... d5 {[%clk 0:02:55.2]} 3. Nc3 {[%clk 0:03:03.9]} 3... d4 {[%clk 0:02:54.2]}
4. Ne2 {[%clk 0:03:04.3]} 4... c5 {[%clk 0:02:55.9]} 5. c3 {[%clk 0:03:05.6]}
5... Nc6 {[%clk 0:02:51.6]} 6. cxd4 {[%clk 0:03:06.2]} 6... cxd4 {[%clk
0:02:53.5]} 7. Qa4 {[%clk 0:03:07.7]} 7... e5 {[%clk 0:02:47.3]} 8. Nxe5 {[%clk
0:03:07.7]} 8... Ne7 {[%clk 0:02:35.9]} 9. d3 {[%clk 0:02:59.3]} 9... Bd7 {[%clk
0:02:17.6]} 10. Nxd7 {[%clk 0:02:59.4]} 10... Qxd7 {[%clk 0:02:19.5]} 11. Nf4
{[%clk 0:02:53.5]} 11... Ng6 {[%clk 0:02:07.8]} 12. Nd5 {[%clk 0:02:52.2]} 12...
Bd6 {[%clk 0:02:01.3]} 13. Be2 {[%clk 0:02:50.2]} 13... O-O {[%clk 0:02:01.7]}
14. O-O {[%clk 0:02:51.3]} 14... f5 {[%clk 0:01:51.5]} 15. g3 {[%clk 0:02:10.3]}
15... f4 {[%clk 0:01:42.1]} 16. Re1 {[%clk 0:01:40.9]} 16... fxg3 {[%clk
0:01:31.6]} 17. fxg3 {[%clk 0:00:55.5]} 17... Bxg3 {[%clk 0:01:30.3]} 18. Qc4
{[%clk 0:00:39.9]} 18... Bf2+ {[%clk 0:00:58.1]} 19. Kg2 {[%clk 0:00:37.9]}
19... Kh8 {[%clk 0:00:55.6]} 20. Bg5 {[%clk 0:00:35.6]} 20... Bxe1 {[%clk
0:00:47.7]} 21. Rxe1 {[%clk 0:00:37.5]} 21... h6 {[%clk 0:00:48.7]} 22. Bc1
{[%clk 0:00:21.2]} 22... Nh4+ {[%clk 0:00:48]} 23. Kg3 {[%clk 0:00:22.8]} 23...
Qd6+ {[%clk 0:00:34]} 24. Bf4 {[%clk 0:00:19.5]} 24... Rxf4 {[%clk 0:00:31.2]}
25. Nxf4 {[%clk 0:00:21.4]} 25... Rf8 {[%clk 0:00:30.6]} 26. Rf1 {[%clk
0:00:19.7]} 26... Ng6 {[%clk 0:00:29.3]} 27. Qe6 {[%clk 0:00:17.6]} 27... Qxe6
{[%clk 0:00:12.8]} 28. Nxe6 {[%clk 0:00:19.5]} 28... Re8 {[%clk 0:00:12.9]} 29.
Nc5 {[%clk 0:00:17.7]} 29... b6 {[%clk 0:00:14.1]} 30. Nd7 {[%clk 0:00:18.7]}
30... Re7 {[%clk 0:00:15.1]} 31. Rc1 {[%clk 0:00:17.5]} 31... Nge5 {[%clk
0:00:14.2]} 32. Nxe5 {[%clk 0:00:18.4]} 32... Nxe5 {[%clk 0:00:16.1]} 33. Rc8+
{[%clk 0:00:18.6]} 33... Kh7 {[%clk 0:00:17]} 34. Rd8 {[%clk 0:00:18.3]} 34...
Rd7 {[%clk 0:00:14]} 35. Rxd7 {[%clk 0:00:19.2]} 35... Nxd7 {[%clk 0:00:15.9]}
36. Kf4 {[%clk 0:00:20.8]} 36... Kg6 {[%clk 0:00:17.1]} 37. Bg4 {[%clk
0:00:22.2]} 37... Nc5 {[%clk 0:00:16.4]} 38. Bf5+ {[%clk 0:00:20.8]} 38... Kf7
{[%clk 0:00:16.5]} 39. e5 {[%clk 0:00:20.6]} 39... g5+ {[%clk 0:00:16.9]} 40.
Kf3 {[%clk 0:00:21.1]} 40... Ke7 {[%clk 0:00:18]} 41. Kg4 {[%clk 0:00:22.3]}
41... a5 {[%clk 0:00:18]} 42. Kh5 {[%clk 0:00:23.7]} 42... Na4 {[%clk
0:00:19.4]} 43. Kxh6 {[%clk 0:00:23.5]} 43... Nxb2 {[%clk 0:00:20.5]} 44. Kxg5
{[%clk 0:00:25.2]} 44... Nd1 {[%clk 0:00:21.5]} 45. h4 {[%clk 0:00:26.3]} 45...
Nc3 {[%clk 0:00:22.7]} 46. h5 {[%clk 0:00:27.6]} 46... Kf7 {[%clk 0:00:22.6]}
47. h6 {[%clk 0:00:28.8]} 47... Kg8 {[%clk 0:00:19.9]} 48. e6 {[%clk 0:00:29.8]}
48... Nd5 {[%clk 0:00:20.6]} 49. Be4 {[%clk 0:00:30.4]} 49... Nc7 {[%clk
0:00:20.9]} 50. Kf6 {[%clk 0:00:30]} 50... b5 {[%clk 0:00:22.1]} 51. e7 {[%clk
0:00:31.4]} 51... b4 {[%clk 0:00:22.8]} 52. Ke5 {[%clk 0:00:29]} 52... a4 {[%clk
0:00:20.8]} 53. Kd6 {[%clk 0:00:30.2]} 53... Ne8+ {[%clk 0:00:21.5]} 54. Kd7
{[%clk 0:00:31.7]} 54... Nf6+ {[%clk 0:00:21.9]} 55. Ke6 {[%clk 0:00:32.8]}
55... Ne8 {[%clk 0:00:22.9]} 56. h7+ {[%clk 0:00:33]} 56... Kg7 {[%clk
0:00:23.4]} 57. Kd7 {[%clk 0:00:34.1]} 57... Nf6+ {[%clk 0:00:24.4]} 58. Kd8
{[%clk 0:00:31.7]} 58... b3 {[%clk 0:00:25.6]} 59. Bd5 {[%clk 0:00:31.3]} 59...
b2 {[%clk 0:00:24.7]} 0-1

[Event "*** Titled Tuesday Blitz"]
[Site "Chess.com"]
[Date "2019.01.01"]
[Round "4"]
[White "Blackmind96"]
[Black "snowlord"]
[Result "1/2-1/2"]
[WhiteElo "2626"]
[BlackElo "2690"]
[TimeControl "180+2"]
[EndTime "13:56:40 PST"]
[Termination "Game drawn by agreement"]

1. d4 {[%clk 0:03:01.9]} 1... Nf6 {[%clk 0:03:00.9]} 2. Nf3 {[%clk 0:02:59.3]}
2... e6 {[%clk 0:03:02.2]} 3. Nbd2 {[%clk 0:02:57.6]} 3... c5 {[%clk 0:03:03.5]}
4. e3 {[%clk 0:02:51.4]} 4... b6 {[%clk 0:03:04.5]} 5. Bd3 {[%clk 0:02:50.5]}
5... Bb7 {[%clk 0:03:05.8]} 6. O-O {[%clk 0:02:50.9]} 6... Be7 {[%clk
0:03:03.8]} 7. b3 {[%clk 0:02:49.5]} 7... cxd4 {[%clk 0:03:03.7]} 8. exd4 {[%clk
0:02:50]} 8... Nc6 {[%clk 0:02:57.3]} 9. a3 {[%clk 0:02:49.1]} 9... Nd5 {[%clk
0:02:53.5]} 10. c4 {[%clk 0:02:46]} 10... Nf4 {[%clk 0:02:53.8]} 11. Bc2 {[%clk
0:02:41.9]} 11... d5 {[%clk 0:02:43.9]} 12. Bb2 {[%clk 0:02:24.6]} 12... O-O
{[%clk 0:02:41.9]} 13. Re1 {[%clk 0:02:23.5]} 13... Bf6 {[%clk 0:02:34]} 14. g3
{[%clk 0:02:08.1]} 14... Nh3+ {[%clk 0:02:34.8]} 15. Kg2 {[%clk 0:02:04.2]}
15... Ng5 {[%clk 0:02:36.2]} 16. Nxg5 {[%clk 0:02:02.9]} 16... Bxg5 {[%clk
0:02:37.7]} 17. Nf3 {[%clk 0:01:50.7]} 17... dxc4 {[%clk 0:02:38.4]} 18. bxc4
{[%clk 0:01:47.9]} 18... Na5 {[%clk 0:02:39.3]} 19. Kg1 {[%clk 0:01:41.6]} 19...
Bf6 {[%clk 0:02:25.6]} 20. Qd3 {[%clk 0:01:32.2]} 20... g6 {[%clk 0:02:26.4]}
21. Bc3 {[%clk 0:01:24.1]} 21... Nxc4 {[%clk 0:02:25.3]} 22. Qxc4 {[%clk
0:01:14.5]} 22... Bxf3 {[%clk 0:02:25.7]} 23. Be4 {[%clk 0:01:16]} 23... Rc8
{[%clk 0:02:24.5]} 24. Qb3 {[%clk 0:01:16.5]} 24... Bxe4 {[%clk 0:02:25.8]} 25.
Rxe4 {[%clk 0:01:18.3]} 25... Qd5 {[%clk 0:02:24.8]} 26. Qxd5 {[%clk 0:01:10.2]}
26... exd5 {[%clk 0:02:26.2]} 27. Re3 {[%clk 0:01:12.1]} 27... Rxc3 {[%clk
0:02:26.8]} 28. Rxc3 {[%clk 0:01:08.7]} 28... Bxd4 {[%clk 0:02:28.4]} 29. Rac1
{[%clk 0:01:10.6]} 29... Bxc3 {[%clk 0:02:29]} 30. Rxc3 {[%clk 0:01:12.5]} 30...
Re8 {[%clk 0:01:49.5]} 31. Rc7 {[%clk 0:01:08.4]} 31... a5 {[%clk 0:01:50.7]}
32. Rd7 {[%clk 0:01:07.8]} 32... Re1+ {[%clk 0:01:43.9]} 33. Kg2 {[%clk
0:01:08]} 33... Ra1 {[%clk 0:01:45.8]} 34. Rxd5 {[%clk 0:01:03.6]} 34... Rb1
{[%clk 0:01:46.9]} 35. Rd8+ {[%clk 0:00:55.3]} 35... Kg7 {[%clk 0:01:47.2]} 36.
Rd6 {[%clk 0:00:56.8]} 36... a4 {[%clk 0:01:40.5]} 37. Rc6 {[%clk 0:00:55.5]}
37... Rb3 {[%clk 0:01:40.1]} 38. h4 {[%clk 0:00:55.1]} 38... b5 {[%clk
0:01:41.2]} 39. Rb6 {[%clk 0:00:55.6]} 39... h5 {[%clk 0:01:41]} 40. Kf1 {[%clk
0:00:55.9]} 40... Kf8 {[%clk 0:01:40.9]} 41. Rb7 {[%clk 0:00:53]} 41... Rb2
{[%clk 0:01:31]} 42. Kg2 {[%clk 0:00:52.6]} 42... Kg7 {[%clk 0:01:32.5]} 43. Rb6
{[%clk 0:00:52.6]} 43... Rb3 {[%clk 0:01:30.1]} 44. Kf1 {[%clk 0:00:53.2]} 44...
f6 {[%clk 0:01:30.2]} 45. Rb7+ {[%clk 0:00:53.6]} 45... Kh6 {[%clk 0:01:31.2]}
46. Rb6 {[%clk 0:00:54.5]} 46... Kg7 {[%clk 0:01:32.2]} 47. Rb7+ {[%clk
0:00:55.6]} 47... Kf8 {[%clk 0:01:33.8]} 48. Rb6 {[%clk 0:00:57.1]} 48... Ke7
{[%clk 0:01:34.6]} 49. Kg2 {[%clk 0:00:52.1]} 49... Kf7 {[%clk 0:01:35]} 50. Kf1
{[%clk 0:00:52]} 50... g5 {[%clk 0:01:34.9]} 51. hxg5 {[%clk 0:00:47.4]} 51...
fxg5 {[%clk 0:01:36.8]} 52. Kg2 {[%clk 0:00:49.1]} 52... h4 {[%clk 0:01:37.9]}
53. gxh4 {[%clk 0:00:38.9]} 53... gxh4 {[%clk 0:01:39.8]} 54. f4 {[%clk
0:00:40.2]} 54... Ke7 {[%clk 0:01:39.3]} 55. f5 {[%clk 0:00:41.1]} 55... h3+
{[%clk 0:01:39.3]} 56. Kh2 {[%clk 0:00:41.9]} 56... Kf7 {[%clk 0:01:39.1]} 57.
f6 {[%clk 0:00:37.8]} 57... Kg6 {[%clk 0:01:39.3]} 58. Kg1 {[%clk 0:00:38.4]}
58... Rb2 {[%clk 0:01:39.1]} 59. Kh1 {[%clk 0:00:35.4]} 59... Rb3 {[%clk
0:01:28.3]} 60. Kh2 {[%clk 0:00:35.7]} 60... Kf7 {[%clk 0:01:27.3]} 61. Kh1
{[%clk 0:00:36]} 61... Rxa3 {[%clk 0:01:21.1]} 62. Rxb5 {[%clk 0:00:37.1]} 62...
Rb3 {[%clk 0:01:21.9]} 63. Ra5 {[%clk 0:00:38]} 63... a3 {[%clk 0:01:22.5]} 64.
Ra6 {[%clk 0:00:36.5]} 64... Kg6 {[%clk 0:01:18.9]} 65. Kh2 {[%clk 0:00:36.9]}
65... Rf3 {[%clk 0:01:20.5]} 66. Kh1 {[%clk 0:00:36.5]} 66... Kf7 {[%clk
0:01:11.7]} 67. Kh2 {[%clk 0:00:36.8]} 67... Ke8 {[%clk 0:01:13.3]} 68. Kh1
{[%clk 0:00:35.6]} 68... Kd7 {[%clk 0:01:14.3]} 69. Kh2 {[%clk 0:00:36.6]} 69...
Kc8 {[%clk 0:01:12.5]} 70. f7 {[%clk 0:00:34.7]} 70... Kb7 {[%clk 0:01:06.9]}
71. Rxa3 {[%clk 0:00:33.8]} 71... Rxf7 {[%clk 0:01:07.9]} 72. Rb3+ {[%clk
0:00:34.6]} 72... Kc6 {[%clk 0:01:08.7]} 73. Rc3+ {[%clk 0:00:35.6]} 73... Kd5
{[%clk 0:01:09.7]} 74. Rd3+ {[%clk 0:00:37.1]} 74... Ke4 {[%clk 0:01:10.7]} 75.
Rxh3 {[%clk 0:00:38.5]} 75... Rf3 {[%clk 0:01:09.5]} 76. Rxf3 {[%clk 0:00:39.1]}
1/2-1/2